[Event "Titled Tuesday Blitz November 9 2021"]
[White "Yeletsky, Ivan"]
[Black "Ibrahimli, Murad"]
[WhiteFideId "24180327"]
[BlackFideId "13410229"]
[WhiteElo "2352"]
[BlackElo "2109"]
[Result "0-1"]
[Round "07"]
[TimeControl "180+1"]
[Date "2021.11.09"]
[WhiteClock "0:00:02"]
[BlackClock "0:00:47"]

1. e4 {[%clk 0:02:59]}  c5 {[%clk 0:03:00]} 2. Nf3 {[%clk 0:02:58]}  a6 {[%clk 0:03:00]} 3. c3 {[%clk 0:02:52]}  d5 {[%clk 0:02:52]} 4. exd5 {[%clk 0:02:51]}  Qxd5 {[%clk 0:02:53]} 5. d4 {[%clk 0:02:51]}  Nf6 {[%clk 0:02:53]} 6. Be3 {[%clk 0:02:49]}  cxd4 {[%clk 0:02:51]} 7. cxd4 {[%clk 0:02:50]}  e6 {[%clk 0:02:51]} 8. Nc3 {[%clk 0:02:50]}  Qd6 {[%clk 0:02:51]} 9. Be2 {[%clk 0:02:45]}  Be7 {[%clk 0:02:51]} 10. O-O {[%clk 0:02:43]}  O-O {[%clk 0:02:52]} 11. Ne5 {[%clk 0:02:44]}  Nc6 {[%clk 0:02:50]} 12. Nc4 {[%clk 0:02:35]}  Qd8 {[%clk 0:02:49]} 13. Bf3 {[%clk 0:02:32]}  Nd5 {[%clk 0:02:46]} 14. Rc1 {[%clk 0:02:14]}  Ncb4 {[%clk 0:02:34]} 15. Bd2 {[%clk 0:02:03]}  b5 {[%clk 0:02:27]} 16. Ne5 {[%clk 0:01:57]}  Bb7 {[%clk 0:02:27]} 17. a3 {[%clk 0:01:52]}  Nxc3 {[%clk 0:02:24]} 18. Rxc3 {[%clk 0:01:49]}  Bxf3 {[%clk 0:02:20]} 19. Rxf3 {[%clk 0:01:17]}  Nd5 {[%clk 0:02:19]} 20. Re1 {[%clk 0:00:59]}  Bf6 {[%clk 0:02:18]} 21. Rg3 {[%clk 0:00:58]}  g6 {[%clk 0:02:09]} 22. Bh6 {[%clk 0:00:55]}  Bg7 {[%clk 0:02:09]} 23. Bxg7 {[%clk 0:00:52]}  Kxg7 {[%clk 0:02:10]} 24. Qd2 {[%clk 0:00:53]}  Qh4 {[%clk 0:02:04]} 25. Rg4 {[%clk 0:00:27]}  Qh6 {[%clk 0:02:04]} 26. Qe2 {[%clk 0:00:23]}  Rac8 {[%clk 0:02:03]} 27. Nd7 {[%clk 0:00:22]}  Rfd8 {[%clk 0:01:56]} 28. Qe5+ {[%clk 0:00:22]}  Kg8 {[%clk 0:01:56]} 29. Nc5 {[%clk 0:00:21]}  Rc6 {[%clk 0:01:39]} 30. h4 {[%clk 0:00:20]}  Qg7 {[%clk 0:01:35]} 31. Qe2 {[%clk 0:00:17]}  Ne7 {[%clk 0:01:26]} 32. h5 {[%clk 0:00:10]}  Nf5 {[%clk 0:01:21]} 33. hxg6 {[%clk 0:00:09]}  hxg6 {[%clk 0:01:22]} 34. Nb3 {[%clk 0:00:02]}  Nxd4 {[%clk 0:01:14]} 35. Nxd4 {[%clk 0:00:03]}  Rxd4 {[%clk 0:01:14]} 36. Qf3 {[%clk 0:00:04]}  Rxg4 {[%clk 0:01:09]} 37. Qxc6 {[%clk 0:00:04]}  Qxb2 {[%clk 0:01:08]} 38. Qxa6 {[%clk 0:00:04]}  Qd2 {[%clk 0:01:04]} 39. Rf1 {[%clk 0:00:04]}  Qd5 {[%clk 0:01:04]} 40. g3 {[%clk 0:00:04]}  Qc5 {[%clk 0:01:02]} 41. Kg2 {[%clk 0:00:04]}  Qd5+ {[%clk 0:01:00]} 42. Kh2 {[%clk 0:00:03]}  Rg5 {[%clk 0:01:00]} 43. f3 {[%clk 0:00:03]}  Qe5 {[%clk 0:00:48]} 44. f4 {[%clk 0:00:02]}  Qe2+ {[%clk 0:00:47]} 0-1


[Site "https://www.chess.com"]

[Event "Titled Tuesday Blitz November 9 2021"]
[White "Aldokhin, Ivan"]
[Black "Mammadov, Zaur"]
[WhiteFideId "24115720"]
[BlackFideId "13401033"]
[WhiteElo "2231"]
[BlackElo "2417"]
[Result "0-1"]
[Round "08"]
[TimeControl "180+1"]
[Date "2021.11.09"]
[WhiteClock "0:00:04"]
[BlackClock "0:02:01"]

1. e4 {[%clk 0:03:00]}  e6 {[%clk 0:03:00]} 2. d4 {[%clk 0:03:00]}  d5 {[%clk 0:03:00]} 3. Nd2 {[%clk 0:03:01]}  Be7 {[%clk 0:03:00]} 4. Bd3 {[%clk 0:02:54]}  c5 {[%clk 0:03:00]} 5. exd5 {[%clk 0:02:53]}  exd5 {[%clk 0:02:58]} 6. dxc5 {[%clk 0:02:51]}  Nf6 {[%clk 0:02:58]} 7. Ngf3 {[%clk 0:02:51]}  O-O {[%clk 0:02:56]} 8. Nb3 {[%clk 0:02:48]}  a5 {[%clk 0:02:57]} 9. a4 {[%clk 0:02:46]}  Na6 {[%clk 0:02:54]} 10. Be3 {[%clk 0:02:43]}  Bg4 {[%clk 0:02:51]} 11. h3 {[%clk 0:02:24]}  Bh5 {[%clk 0:02:50]} 12. g4 {[%clk 0:02:24]}  Bg6 {[%clk 0:02:47]} 13. Ne5 {[%clk 0:02:24]}  Bxd3 {[%clk 0:02:41]} 14. Qxd3 {[%clk 0:02:11]}  Ne4 {[%clk 0:02:38]} 15. O-O-O {[%clk 0:01:50]}  Nb4 {[%clk 0:02:38]} 16. Qb5 {[%clk 0:01:47]}  Na2+ {[%clk 0:02:35]} 17. Kb1 {[%clk 0:01:41]}  Nac3+ {[%clk 0:02:36]} 18. bxc3 {[%clk 0:01:40]}  Nxc3+ {[%clk 0:02:37]} 19. Kb2 {[%clk 0:01:14]}  Nxb5 {[%clk 0:02:38]} 20. axb5 {[%clk 0:01:13]}  a4 {[%clk 0:02:35]} 21. Nd4 {[%clk 0:00:53]}  Bxc5 {[%clk 0:02:34]} 22. Ne6 {[%clk 0:00:40]}  a3+ {[%clk 0:02:21]} 23. Ka2 {[%clk 0:00:38]}  fxe6 {[%clk 0:02:18]} 24. Bxc5 {[%clk 0:00:38]}  Rf4 {[%clk 0:02:18]} 25. c4 {[%clk 0:00:24]}  Qc7 {[%clk 0:02:16]} 26. Nd3 {[%clk 0:00:12]}  Rxc4 {[%clk 0:02:15]} 27. Rc1 {[%clk 0:00:12]}  b6 {[%clk 0:02:11]} 28. Bd4 {[%clk 0:00:09]}  Rc2+ {[%clk 0:02:09]} 29. Ka1 {[%clk 0:00:09]}  Qc4 {[%clk 0:02:08]} 30. Rxc2 {[%clk 0:00:09]}  Qxc2 {[%clk 0:02:07]} 31. Ne5 {[%clk 0:00:05]}  Ra4 {[%clk 0:02:02]} 32. Nc6 {[%clk 0:00:04]}  Rxd4 {[%clk 0:02:01]} 0-1


[Site "https://www.chess.com"]

[Event "Titled Tuesday Blitz November 9 2021"]
[White "Barbosa, Evandro Amorim"]
[Black "Yeletsky, Ivan"]
[WhiteFideId "2115824"]
[BlackFideId "24180327"]
[WhiteElo "2454"]
[BlackElo "2352"]
[Result "0-1"]
[Round "08"]
[TimeControl "180+1"]
[Date "2021.11.09"]
[WhiteClock "0:00:03"]
[BlackClock "0:00:09"]

1. e4 {[%clk 0:03:00]}  d6 {[%clk 0:02:58]} 2. d4 {[%clk 0:03:00]}  Nf6 {[%clk 0:02:58]} 3. Nc3 {[%clk 0:03:00]}  g6 {[%clk 0:02:59]} 4. f4 {[%clk 0:03:00]}  Bg7 {[%clk 0:02:59]} 5. Nf3 {[%clk 0:03:01]}  c5 {[%clk 0:02:58]} 6. dxc5 {[%clk 0:02:59]}  Qa5 {[%clk 0:02:58]} 7. Qd4 {[%clk 0:02:59]}  O-O {[%clk 0:02:49]} 8. Bd2 {[%clk 0:02:54]}  Nc6 {[%clk 0:02:47]} 9. Qc4 {[%clk 0:02:52]}  Be6 {[%clk 0:02:46]} 10. Qb5 {[%clk 0:02:52]}  Qc7 {[%clk 0:02:38]} 11. cxd6 {[%clk 0:02:48]}  exd6 {[%clk 0:02:38]} 12. O-O-O {[%clk 0:02:29]}  Rac8 {[%clk 0:02:25]} 13. Kb1 {[%clk 0:02:08]}  a6 {[%clk 0:01:55]} 14. Qe2 {[%clk 0:01:58]}  Nb4 {[%clk 0:01:40]} 15. a3 {[%clk 0:01:39]}  Nxc2 {[%clk 0:01:33]} 16. Kxc2 {[%clk 0:01:30]}  Qb6 {[%clk 0:01:32]} 17. Kb1 {[%clk 0:01:06]}  Ng4 {[%clk 0:00:52]} 18. Rc1 {[%clk 0:00:41]}  Qb3 {[%clk 0:00:33]} 19. Be1 {[%clk 0:00:20]}  Rxc3 {[%clk 0:00:14]} 20. Bxc3 {[%clk 0:00:18]}  Rc8 {[%clk 0:00:14]} 21. Qd1 {[%clk 0:00:03]}  Qa2+ {[%clk 0:00:14]} 22. Kc2 {[%clk 0:00:03]}  Rxc3+ {[%clk 0:00:14]} 23. Kd2 {[%clk 0:00:03]}  Ne3 {[%clk 0:00:09]} 0-1


[Site "https://www.chess.com"]

[Event "Titled Tuesday Blitz November 9 2021"]
[White "Bortnyk, Mykola"]
[Black "Zierk, Steven"]
[WhiteFideId "14120836"]
[BlackFideId "2034255"]
[WhiteElo "2582"]
[BlackElo "2494"]
[Result "0-1"]
[Round "08"]
[TimeControl "180+1"]
[Date "2021.11.09"]
[WhiteClock "0:00:17"]
[BlackClock "0:00:06"]

1. e4 {[%clk 0:03:00]}  e6 {[%clk 0:02:59]} 2. d4 {[%clk 0:03:00]}  d5 {[%clk 0:02:59]} 3. Nc3 {[%clk 0:03:01]}  Bb4 {[%clk 0:02:59]} 4. exd5 {[%clk 0:03:01]}  exd5 {[%clk 0:02:59]} 5. Bd3 {[%clk 0:03:02]}  Nc6 {[%clk 0:02:59]} 6. Be3 {[%clk 0:03:01]}  Nf6 {[%clk 0:02:54]} 7. h3 {[%clk 0:02:57]}  Ne4 {[%clk 0:02:42]} 8. Ne2 {[%clk 0:02:54]}  Bf5 {[%clk 0:02:37]} 9. a3 {[%clk 0:02:53]}  Nxc3 {[%clk 0:02:32]} 10. bxc3 {[%clk 0:02:50]}  Bxd3 {[%clk 0:02:29]} 11. cxd3 {[%clk 0:02:48]}  Bd6 {[%clk 0:02:29]} 12. Qb3 {[%clk 0:02:46]}  O-O {[%clk 0:02:16]} 13. Qxd5 {[%clk 0:02:41]}  Re8 {[%clk 0:02:13]} 14. Qf3 {[%clk 0:02:37]}  Re6 {[%clk 0:01:58]} 15. O-O {[%clk 0:02:26]}  Rf6 {[%clk 0:01:54]} 16. Qh5 {[%clk 0:02:25]}  Qd7 {[%clk 0:01:51]} 17. Rab1 {[%clk 0:02:23]}  b6 {[%clk 0:01:48]} 18. Qg4 {[%clk 0:02:19]}  Qxg4 {[%clk 0:01:44]} 19. hxg4 {[%clk 0:02:20]}  Rg6 {[%clk 0:01:45]} 20. g5 {[%clk 0:02:12]}  Re8 {[%clk 0:01:39]} 21. Rfe1 {[%clk 0:02:10]}  Bxa3 {[%clk 0:01:34]} 22. d5 {[%clk 0:01:57]}  Ne5 {[%clk 0:01:27]} 23. Rbd1 {[%clk 0:01:56]}  Be7 {[%clk 0:01:14]} 24. f4 {[%clk 0:01:49]}  Ng4 {[%clk 0:01:14]} 25. Bd4 {[%clk 0:01:50]}  Bd6 {[%clk 0:01:05]} 26. Ng3 {[%clk 0:01:48]}  Rxe1+ {[%clk 0:00:51]} 27. Rxe1 {[%clk 0:01:49]}  Kf8 {[%clk 0:00:50]} 28. Re4 {[%clk 0:01:42]}  h6 {[%clk 0:00:41]} 29. Nh5 {[%clk 0:01:32]}  f5 {[%clk 0:00:25]} 30. Re6 {[%clk 0:01:32]}  Kf7 {[%clk 0:00:19]} 31. Nxg7 {[%clk 0:01:18]}  Rxg7 {[%clk 0:00:19]} 32. Bxg7 {[%clk 0:01:17]}  Kxg7 {[%clk 0:00:20]} 33. gxh6+ {[%clk 0:01:14]}  Nxh6 {[%clk 0:00:20]} 34. g3 {[%clk 0:01:14]}  a5 {[%clk 0:00:21]} 35. Re2 {[%clk 0:01:10]}  a4 {[%clk 0:00:21]} 36. Ra2 {[%clk 0:01:09]}  a3 {[%clk 0:00:21]} 37. Kf2 {[%clk 0:01:10]}  Ng4+ {[%clk 0:00:21]} 38. Ke2 {[%clk 0:01:10]}  Nf6 {[%clk 0:00:21]} 39. c4 {[%clk 0:01:10]}  Bc5 {[%clk 0:00:21]} 40. d4 {[%clk 0:01:09]}  Bxd4 {[%clk 0:00:21]} 41. Rxa3 {[%clk 0:01:09]}  Ne4 {[%clk 0:00:21]} 42. Ra7 {[%clk 0:01:08]}  Nxg3+ {[%clk 0:00:21]} 43. Kf3 {[%clk 0:01:08]}  Ne4 {[%clk 0:00:22]} 44. Rxc7+ {[%clk 0:01:09]}  Kf6 {[%clk 0:00:22]} 45. Rc6+ {[%clk 0:01:08]}  Kf7 {[%clk 0:00:23]} 46. Ke2 {[%clk 0:01:05]}  Bc5 {[%clk 0:00:22]} 47. Rh6 {[%clk 0:01:04]}  Nf6 {[%clk 0:00:21]} 48. Kd3 {[%clk 0:01:03]}  Kg7 {[%clk 0:00:21]} 49. Rh1 {[%clk 0:01:00]}  Ne4 {[%clk 0:00:21]} 50. Kc2 {[%clk 0:00:58]}  Be3 {[%clk 0:00:20]} 51. Rh4 {[%clk 0:00:48]}  Kf6 {[%clk 0:00:16]} 52. Kd3 {[%clk 0:00:47]}  Bc5 {[%clk 0:00:16]} 53. Rh6+ {[%clk 0:00:46]}  Ke7 {[%clk 0:00:16]} 54. Re6+ {[%clk 0:00:45]}  Kd7 {[%clk 0:00:16]} 55. Re5 {[%clk 0:00:44]}  Nd6 {[%clk 0:00:16]} 56. Kc3 {[%clk 0:00:42]}  Bf2 {[%clk 0:00:15]} 57. Kb4 {[%clk 0:00:41]}  Bg3 {[%clk 0:00:14]} 58. Re6 {[%clk 0:00:35]}  Bxf4 {[%clk 0:00:12]} 59. Rg6 {[%clk 0:00:35]}  Be3 {[%clk 0:00:10]} 60. Rg7+ {[%clk 0:00:35]}  Ke8 {[%clk 0:00:11]} 61. Kc3 {[%clk 0:00:34]}  Bc5 {[%clk 0:00:08]} 62. Kd3 {[%clk 0:00:34]}  Nf7 {[%clk 0:00:08]} 63. Rh7 {[%clk 0:00:31]}  Ke7 {[%clk 0:00:08]} 64. Rh1 {[%clk 0:00:27]}  Ne5+ {[%clk 0:00:07]} 65. Kc3 {[%clk 0:00:27]}  f4 {[%clk 0:00:06]} 66. Rf1 {[%clk 0:00:26]}  f3 {[%clk 0:00:06]} 67. Rh1 {[%clk 0:00:25]}  f2 {[%clk 0:00:06]} 68. Kd2 {[%clk 0:00:22]}  Nxc4+ {[%clk 0:00:05]} 69. Ke2 {[%clk 0:00:23]}  Kd6 {[%clk 0:00:05]} 70. Rh5 {[%clk 0:00:22]}  Ne5 {[%clk 0:00:05]} 71. Rh1 {[%clk 0:00:21]}  Kxd5 {[%clk 0:00:06]} 72. Rd1+ {[%clk 0:00:21]}  Bd4 {[%clk 0:00:06]} 73. Rb1 {[%clk 0:00:22]}  Nc6 {[%clk 0:00:04]} 74. Rb5+ {[%clk 0:00:22]}  Bc5 {[%clk 0:00:05]} 75. Rb1 {[%clk 0:00:22]}  Nb4 {[%clk 0:00:05]} 76. Rd1+ {[%clk 0:00:22]}  Bd4 {[%clk 0:00:05]} 77. Rb1 {[%clk 0:00:21]}  Nc2 {[%clk 0:00:05]} 78. Rb5+ {[%clk 0:00:21]}  Kc4 {[%clk 0:00:05]} 79. Rf5 {[%clk 0:00:17]}  b5 {[%clk 0:00:05]} 80. Rf8 {[%clk 0:00:17]}  b4 {[%clk 0:00:06]} 81. Rc8+ {[%clk 0:00:18]}  Bc5 {[%clk 0:00:06]} 82. Rb8 {[%clk 0:00:16]}  b3 {[%clk 0:00:06]} 83. Kf1 {[%clk 0:00:17]}  Nb4 {[%clk 0:00:06]} 0-1


[Site "https://www.chess.com"]

[Event "Titled Tuesday Blitz November 9 2021"]
[White "Cunjalo, Faris"]
[Black "Xiong, Jeffery"]
[WhiteFideId "14410710"]
[BlackFideId "2047640"]
[WhiteElo "2263"]
[BlackElo "2699"]
[Result "1/2-1/2"]
[Round "08"]
[TimeControl "180+1"]
[Date "2021.11.09"]
[WhiteClock "0:02:03"]
[BlackClock "0:02:42"]

1. d4 {[%clk 0:03:00]}  Nf6 {[%clk 0:03:00]} 2. Bf4 {[%clk 0:03:00]}  d5 {[%clk 0:02:58]} 3. e3 {[%clk 0:03:00]}  c5 {[%clk 0:02:58]} 4. c3 {[%clk 0:03:00]}  Qb6 {[%clk 0:02:51]} 5. Qb3 {[%clk 0:03:00]}  Nc6 {[%clk 0:02:51]} 6. Nd2 {[%clk 0:02:59]}  g6 {[%clk 0:02:50]} 7. Ngf3 {[%clk 0:02:58]}  c4 {[%clk 0:02:50]} 8. Qc2 {[%clk 0:02:51]}  Bf5 {[%clk 0:02:50]} 9. Qc1 {[%clk 0:02:51]}  Bg7 {[%clk 0:02:51]} 10. Be2 {[%clk 0:02:42]}  O-O {[%clk 0:02:51]} 11. O-O {[%clk 0:02:38]}  Qa5 {[%clk 0:02:50]} 12. b3 {[%clk 0:02:34]}  b5 {[%clk 0:02:50]} 13. a4 {[%clk 0:02:22]}  b4 {[%clk 0:02:50]} 14. cxb4 {[%clk 0:02:20]}  Nxb4 {[%clk 0:02:48]} 15. bxc4 {[%clk 0:02:20]}  Nc2 {[%clk 0:02:44]} 16. Ra2 {[%clk 0:02:15]}  Nb4 {[%clk 0:02:44]} 17. Ra3 {[%clk 0:02:15]}  Nc2 {[%clk 0:02:42]} 18. Ra2 {[%clk 0:02:02]}  Nb4 {[%clk 0:02:42]} 19. Ra3 {[%clk 0:02:03]}  Nc2 {[%clk 0:02:42]} 20. Ra2 {[%clk 0:02:03]} 1/2-1/2


[Site "https://www.chess.com"]

[Event "Titled Tuesday Blitz November 9 2021"]
[White "Ibrahimli, Murad"]
[Black "Costachi, Mihnea"]
[WhiteFideId "13410229"]
[BlackFideId "1217518"]
[WhiteElo "2109"]
[BlackElo "2482"]
[Result "1-0"]
[Round "08"]
[TimeControl "180+1"]
[Date "2021.11.09"]
[WhiteClock "0:00:12"]
[BlackClock "0:00:17"]

1. Nf3 {[%clk 0:03:00]}  Nf6 {[%clk 0:02:59]} 2. d4 {[%clk 0:02:59]}  g6 {[%clk 0:02:59]} 3. c4 {[%clk 0:02:58]}  Bg7 {[%clk 0:02:59]} 4. Nc3 {[%clk 0:02:57]}  O-O {[%clk 0:03:00]} 5. e4 {[%clk 0:02:57]}  d6 {[%clk 0:03:01]} 6. Be2 {[%clk 0:02:57]}  Na6 {[%clk 0:03:01]} 7. Bg5 {[%clk 0:02:51]}  h6 {[%clk 0:03:01]} 8. Be3 {[%clk 0:02:50]}  e5 {[%clk 0:03:02]} 9. dxe5 {[%clk 0:02:49]}  dxe5 {[%clk 0:03:01]} 10. h3 {[%clk 0:02:48]}  c6 {[%clk 0:03:00]} 11. O-O {[%clk 0:02:41]}  Qe7 {[%clk 0:02:58]} 12. Qa4 {[%clk 0:02:33]}  Nh5 {[%clk 0:02:54]} 13. Rfd1 {[%clk 0:02:29]}  Nf4 {[%clk 0:02:52]} 14. Bf1 {[%clk 0:02:28]}  Nc7 {[%clk 0:02:46]} 15. Qa5 {[%clk 0:02:00]}  Nce6 {[%clk 0:02:06]} 16. g3 {[%clk 0:01:52]}  Nh5 {[%clk 0:01:59]} 17. Nxe5 {[%clk 0:01:28]}  Ng5 {[%clk 0:01:26]} 18. Ng4 {[%clk 0:01:20]}  Nf3+ {[%clk 0:01:13]} 19. Kh1 {[%clk 0:01:17]}  Bxg4 {[%clk 0:00:41]} 20. hxg4 {[%clk 0:01:15]}  Nf6 {[%clk 0:00:40]} 21. Bg2 {[%clk 0:01:04]}  b6 {[%clk 0:00:25]} 22. Qa4 {[%clk 0:00:56]}  Ne5 {[%clk 0:00:24]} 23. f3 {[%clk 0:00:56]}  Rfd8 {[%clk 0:00:19]} 24. Rxd8+ {[%clk 0:00:44]}  Rxd8 {[%clk 0:00:19]} 25. Rd1 {[%clk 0:00:44]}  Rxd1+ {[%clk 0:00:17]} 26. Nxd1 {[%clk 0:00:45]}  Qd7 {[%clk 0:00:15]} 27. Qc2 {[%clk 0:00:46]}  h5 {[%clk 0:00:12]} 28. g5 {[%clk 0:00:44]}  Ne8 {[%clk 0:00:13]} 29. Nf2 {[%clk 0:00:43]}  Nd6 {[%clk 0:00:12]} 30. b3 {[%clk 0:00:42]}  Qe6 {[%clk 0:00:11]} 31. Bh3 {[%clk 0:00:37]}  Qe7 {[%clk 0:00:11]} 32. f4 {[%clk 0:00:36]}  Nf3 {[%clk 0:00:08]} 33. Qd1 {[%clk 0:00:31]}  Nd4 {[%clk 0:00:04]} 34. Bxd4 {[%clk 0:00:30]}  Nxe4 {[%clk 0:00:04]} 35. Qf3 {[%clk 0:00:19]}  Nxg3+ {[%clk 0:00:02]} 36. Qxg3 {[%clk 0:00:20]}  Bxd4 {[%clk 0:00:03]} 37. Qf3 {[%clk 0:00:18]}  Qe1+ {[%clk 0:00:03]} 38. Kg2 {[%clk 0:00:19]}  Qd2 {[%clk 0:00:03]} 39. Kf1 {[%clk 0:00:15]}  Qxa2 {[%clk 0:00:04]} 40. Ne4 {[%clk 0:00:11]}  Qb1+ {[%clk 0:00:03]} 41. Ke2 {[%clk 0:00:10]}  Qc2+ {[%clk 0:00:03]} 42. Nd2 {[%clk 0:00:11]}  c5 {[%clk 0:00:03]} 43. Qd3 {[%clk 0:00:10]}  Qc1 {[%clk 0:00:04]} 44. Ne4 {[%clk 0:00:07]}  Qh1 {[%clk 0:00:04]} 45. Qf3 {[%clk 0:00:06]}  Qh2+ {[%clk 0:00:04]} 46. Qg2 {[%clk 0:00:05]}  Qxf4 {[%clk 0:00:04]} 47. Qf3 {[%clk 0:00:05]}  Qc1 {[%clk 0:00:04]} 48. Bd7 {[%clk 0:00:03]}  Qc2+ {[%clk 0:00:04]} 49. Kf1 {[%clk 0:00:03]}  h4 {[%clk 0:00:04]} 50. Be8 {[%clk 0:00:03]}  Qc1+ {[%clk 0:00:04]} 51. Kg2 {[%clk 0:00:04]}  Qc2+ {[%clk 0:00:03]} 52. Kh3 {[%clk 0:00:04]}  f5 {[%clk 0:00:04]} 53. gxf6 {[%clk 0:00:04]}  Qc1 {[%clk 0:00:02]} 54. Bxg6 {[%clk 0:00:04]}  Qe3 {[%clk 0:00:01]} 55. Qxe3 {[%clk 0:00:03]}  Bxe3 {[%clk 0:00:02]} 56. Kxh4 {[%clk 0:00:04]}  Bd4 {[%clk 0:00:03]} 57. Kg4 {[%clk 0:00:04]}  a5 {[%clk 0:00:04]} 58. Kf5 {[%clk 0:00:04]}  a4 {[%clk 0:00:05]} 59. bxa4 {[%clk 0:00:05]}  Bb2 {[%clk 0:00:05]} 60. Nd6 {[%clk 0:00:05]}  Kf8 {[%clk 0:00:06]} 61. Nb5 {[%clk 0:00:05]}  Bxf6 {[%clk 0:00:06]} 62. Kxf6 {[%clk 0:00:05]}  Kg8 {[%clk 0:00:07]} 63. Bf5 {[%clk 0:00:05]}  Kh8 {[%clk 0:00:08]} 64. Ke6 {[%clk 0:00:05]}  Kg8 {[%clk 0:00:08]} 65. Kd6 {[%clk 0:00:06]}  Kg7 {[%clk 0:00:09]} 66. Kc6 {[%clk 0:00:06]}  Kf6 {[%clk 0:00:10]} 67. Kxb6 {[%clk 0:00:07]}  Kxf5 {[%clk 0:00:11]} 68. Kxc5 {[%clk 0:00:08]}  Ke5 {[%clk 0:00:12]} 69. a5 {[%clk 0:00:08]}  Ke6 {[%clk 0:00:13]} 70. a6 {[%clk 0:00:09]}  Kd7 {[%clk 0:00:14]} 71. a7 {[%clk 0:00:10]}  Kc8 {[%clk 0:00:14]} 72. a8=Q+ {[%clk 0:00:10]}  Kd7 {[%clk 0:00:15]} 73. Qb7+ {[%clk 0:00:10]}  Kd8 {[%clk 0:00:15]} 74. Qc7+ {[%clk 0:00:11]}  Ke8 {[%clk 0:00:16]} 75. Nd6+ {[%clk 0:00:12]}  Kf8 {[%clk 0:00:17]} 76. Qf7# {[%clk 0:00:12]} 1-0


[Site "https://www.chess.com"]

[Event "Titled Tuesday Blitz November 9 2021"]
[White "Jobava, Baadur"]
[Black "Svane, Frederik"]
[WhiteFideId "13601520"]
[BlackFideId "12923044"]
[WhiteElo "2731"]
[BlackElo "2459"]
[Result "1-0"]
[Round "08"]
[TimeControl "180+1"]
[Date "2021.11.09"]
[WhiteClock "0:00:29"]
[BlackClock "0:00:03"]

1. e4 {[%clk 0:03:00]}  c5 {[%clk 0:03:00]} 2. c3 {[%clk 0:02:59]}  d5 {[%clk 0:03:00]} 3. exd5 {[%clk 0:03:00]}  Qxd5 {[%clk 0:03:00]} 4. d4 {[%clk 0:03:00]}  e6 {[%clk 0:03:01]} 5. Nf3 {[%clk 0:03:00]}  Nf6 {[%clk 0:03:01]} 6. Bd3 {[%clk 0:03:00]}  Be7 {[%clk 0:02:58]} 7. O-O {[%clk 0:03:00]}  O-O {[%clk 0:02:59]} 8. Re1 {[%clk 0:03:00]}  Nc6 {[%clk 0:02:53]} 9. Be3 {[%clk 0:02:57]}  Rd8 {[%clk 0:02:49]} 10. Nbd2 {[%clk 0:02:51]}  cxd4 {[%clk 0:02:47]} 11. cxd4 {[%clk 0:02:50]}  b6 {[%clk 0:02:44]} 12. Rc1 {[%clk 0:02:41]}  Bb7 {[%clk 0:02:44]} 13. a3 {[%clk 0:02:41]}  Rac8 {[%clk 0:02:42]} 14. h3 {[%clk 0:02:38]}  h6 {[%clk 0:02:42]} 15. Qe2 {[%clk 0:02:37]}  Bf8 {[%clk 0:02:35]} 16. Rc3 {[%clk 0:02:29]}  Na5 {[%clk 0:02:28]} 17. Bf4 {[%clk 0:01:51]}  Nc6 {[%clk 0:02:23]} 18. Be3 {[%clk 0:01:46]}  Na5 {[%clk 0:02:11]} 19. Bf4 {[%clk 0:01:45]}  Nc6 {[%clk 0:01:54]} 20. Rc4 {[%clk 0:01:18]}  Ba6 {[%clk 0:01:46]} 21. Rc3 {[%clk 0:00:58]}  Bxd3 {[%clk 0:01:43]} 22. Rxd3 {[%clk 0:00:58]}  Qf5 {[%clk 0:01:40]} 23. Bg3 {[%clk 0:00:51]}  Qb5 {[%clk 0:01:35]} 24. Nf1 {[%clk 0:00:42]}  Nd5 {[%clk 0:01:27]} 25. Red1 {[%clk 0:00:41]}  Na5 {[%clk 0:01:27]} 26. Ne3 {[%clk 0:00:38]}  Nc4 {[%clk 0:01:18]} 27. Nxc4 {[%clk 0:00:36]}  Qxc4 {[%clk 0:01:19]} 28. Ne5 {[%clk 0:00:36]}  Qb5 {[%clk 0:01:14]} 29. Nxf7 {[%clk 0:00:34]}  Re8 {[%clk 0:01:02]} 30. Be5 {[%clk 0:00:31]}  Ne7 {[%clk 0:00:03]} 31. Nxh6+ {[%clk 0:00:29]} 1-0


[Site "https://www.chess.com"]

[Event "Titled Tuesday Blitz November 9 2021"]
[White "Khanin, Semen"]
[Black "Nozdrachev, Leonid"]
[WhiteFideId "4111990"]
[BlackFideId "24113433"]
[WhiteElo "2442"]
[BlackElo "2124"]
[Result "1-0"]
[Round "08"]
[TimeControl "180+1"]
[Date "2021.11.09"]
[WhiteClock "0:02:01"]
[BlackClock "0:00:17"]

1. c4 {[%clk 0:03:00]}  e5 {[%clk 0:02:30]} 2. g3 {[%clk 0:03:00]}  Nf6 {[%clk 0:02:29]} 3. Nc3 {[%clk 0:02:57]}  Bb4 {[%clk 0:02:27]} 4. Bg2 {[%clk 0:02:57]}  Bxc3 {[%clk 0:02:27]} 5. bxc3 {[%clk 0:02:56]}  O-O {[%clk 0:02:25]} 6. e4 {[%clk 0:02:53]}  d6 {[%clk 0:02:19]} 7. Ne2 {[%clk 0:02:52]}  Be6 {[%clk 0:02:15]} 8. d3 {[%clk 0:02:52]}  Qd7 {[%clk 0:02:10]} 9. h3 {[%clk 0:02:50]}  Nc6 {[%clk 0:02:04]} 10. f4 {[%clk 0:02:49]}  exf4 {[%clk 0:02:04]} 11. gxf4 {[%clk 0:02:49]}  Qe7 {[%clk 0:02:02]} 12. O-O {[%clk 0:02:48]}  Rfe8 {[%clk 0:01:56]} 13. Be3 {[%clk 0:02:43]}  Rad8 {[%clk 0:01:42]} 14. Qd2 {[%clk 0:02:41]}  d5 {[%clk 0:01:34]} 15. cxd5 {[%clk 0:02:23]}  Bxd5 {[%clk 0:01:32]} 16. exd5 {[%clk 0:02:23]}  Qxe3+ {[%clk 0:01:19]} 17. Qxe3 {[%clk 0:02:22]}  Rxe3 {[%clk 0:01:20]} 18. dxc6 {[%clk 0:02:22]}  bxc6 {[%clk 0:01:00]} 19. Nd4 {[%clk 0:02:19]}  Rxd3 {[%clk 0:00:58]} 20. Nxc6 {[%clk 0:02:18]}  R8d6 {[%clk 0:00:54]} 21. Nxa7 {[%clk 0:02:18]}  Rb6 {[%clk 0:00:50]} 22. a4 {[%clk 0:02:15]}  Rxc3 {[%clk 0:00:47]} 23. a5 {[%clk 0:02:15]}  Rb2 {[%clk 0:00:43]} 24. Rf2 {[%clk 0:02:14]}  Rb8 {[%clk 0:00:33]} 25. a6 {[%clk 0:02:13]}  Kf8 {[%clk 0:00:25]} 26. Nb5 {[%clk 0:02:12]}  Rb3 {[%clk 0:00:21]} 27. Nxc7 {[%clk 0:02:06]}  Rb1+ {[%clk 0:00:19]} 28. Rxb1 {[%clk 0:02:06]}  Rxb1+ {[%clk 0:00:20]} 29. Rf1 {[%clk 0:02:05]}  Rxf1+ {[%clk 0:00:17]} 30. Kxf1 {[%clk 0:02:04]}  Nd7 {[%clk 0:00:17]} 31. Nd5 {[%clk 0:02:01]} 1-0


[Site "https://www.chess.com"]